[Event "*** Titled Tuesday Blitz"]
[Site "Chess.com"]
[Date "2018.08.07"]
[Round "2"]
[White "indfraeng"]
[Black "MarshKnight"]
[Result "0-1"]
[WhiteElo "1889"]
[BlackElo "2113"]
[TimeControl "180+2"]
[EndTime "13:18:41 PDT"]
[Termination "MarshKnight won by checkmate"]

1. d4 {[%clk 0:03:01.9]} 1... e6 {[%clk 0:03:00.6]} 2. c4 {[%clk 0:02:59.9]}
2... b6 {[%clk 0:03:01.9]} 3. Nc3 {[%clk 0:02:59.4]} 3... Bb7 {[%clk 0:03:03]}
4. e4 {[%clk 0:02:59.3]} 4... Bb4 {[%clk 0:03:03.9]} 5. Bd3 {[%clk 0:02:58.7]}
5... f5 {[%clk 0:03:04.4]} 6. f3 {[%clk 0:02:56.1]} 6... Nh6 {[%clk 0:03:04]} 7.
Bxh6 {[%clk 0:02:55.8]} 7... Qh4+ {[%clk 0:03:04]} 8. g3 {[%clk 0:02:53.7]} 8...
Qxh6 {[%clk 0:03:05.3]} 9. Qd2 {[%clk 0:02:52.6]} 9... Qxd2+ {[%clk 0:03:01.2]}
10. Kxd2 {[%clk 0:02:52.2]} 10... fxe4 {[%clk 0:03:02.8]} 11. fxe4 {[%clk
0:02:51.6]} 11... O-O {[%clk 0:03:04.3]} 12. Ne2 {[%clk 0:02:51]} 12... Nc6
{[%clk 0:02:57.3]} 13. Rhf1 {[%clk 0:02:48.8]} 13... e5 {[%clk 0:02:57.8]} 14.
a3 {[%clk 0:02:43.8]} 14... Bxc3+ {[%clk 0:02:51.2]} 15. bxc3 {[%clk 0:02:43.5]}
15... d6 {[%clk 0:02:49.7]} 16. Kc2 {[%clk 0:02:42.4]} 16... Rae8 {[%clk
0:02:44.9]} 17. Rae1 {[%clk 0:02:28.6]} 17... Ba6 {[%clk 0:02:39.7]} 18. Kb3
{[%clk 0:02:12.4]} 18... Na5+ {[%clk 0:02:39.8]} 19. Kb4 {[%clk 0:02:12.8]}
19... c5+ {[%clk 0:02:38.9]} 20. Ka4 {[%clk 0:02:12.9]} 20... Nxc4 {[%clk
0:02:32.5]} 21. Bxc4+ {[%clk 0:02:11]} 21... Bxc4 {[%clk 0:02:33.4]} 22. Rxf8+
{[%clk 0:02:10.6]} 22... Rxf8 {[%clk 0:02:34]} 23. Ng1 {[%clk 0:02:09.5]} 23...
Rf2 {[%clk 0:02:26.3]} 24. dxe5 {[%clk 0:02:08.8]} 24... dxe5 {[%clk 0:02:25.3]}
25. h4 {[%clk 0:02:08.1]} 25... Ra2 {[%clk 0:02:24.3]} 26. Rb1 {[%clk
0:02:02.2]} 26... b5+ {[%clk 0:02:24.7]} 27. Rxb5 {[%clk 0:02:02.9]} 27... Bxb5+
{[%clk 0:02:25.5]} 28. Kxb5 {[%clk 0:02:03.9]} 28... Rxa3 {[%clk 0:02:22.3]} 29.
c4 {[%clk 0:02:02.8]} 29... Rxg3 {[%clk 0:02:23]} 30. Ne2 {[%clk 0:02:02.7]}
30... Re3 {[%clk 0:02:23.6]} 31. Nc1 {[%clk 0:02:03.7]} 31... Rxe4 {[%clk
0:02:23.3]} 32. Kxc5 {[%clk 0:02:04.2]} 32... Rxh4 {[%clk 0:02:23.5]} 33. Kb5
{[%clk 0:02:03.1]} 33... Rh2 {[%clk 0:02:22.7]} 34. c5 {[%clk 0:02:03.8]} 34...
Rc2 {[%clk 0:02:23.9]} 35. Nb3 {[%clk 0:02:02.2]} 35... Rb2 {[%clk 0:02:07.7]}
36. Kc4 {[%clk 0:02:00.9]} 36... h5 {[%clk 0:02:05.7]} 37. c6 {[%clk 0:02:00.2]}
37... h4 {[%clk 0:02:06.2]} 38. Nc5 {[%clk 0:01:54]} 38... Rb8 {[%clk 0:01:59]}
39. Kd5 {[%clk 0:01:51.5]} 39... h3 {[%clk 0:01:56.8]} 40. Ne4 {[%clk
0:01:50.8]} 40... h2 {[%clk 0:01:53.3]} 41. Nf2 {[%clk 0:01:50]} 41... Rc8
{[%clk 0:01:54]} 42. Kd6 {[%clk 0:01:49.3]} 42... a5 {[%clk 0:01:55.4]} 43. Kd7
{[%clk 0:01:48.2]} 43... Rxc6 {[%clk 0:01:56.1]} 44. Kxc6 {[%clk 0:01:48.3]}
44... e4 {[%clk 0:01:57.6]} 45. Kd5 {[%clk 0:01:46.3]} 45... e3 {[%clk
0:01:58.5]} 46. Nh1 {[%clk 0:01:47.3]} 46... e2 {[%clk 0:01:59.9]} 47. Kc5
{[%clk 0:01:46.6]} 47... e1=Q {[%clk 0:02:00.9]} 48. Kb5 {[%clk 0:01:47.1]}
48... Qxh1 {[%clk 0:02:01.4]} 49. Kxa5 {[%clk 0:01:47.9]} 49... Qb7 {[%clk
0:02:02.2]} 50. Ka4 {[%clk 0:01:48.3]} 50... h1=Q {[%clk 0:02:02.9]} 51. Ka5
{[%clk 0:01:49]} 51... Qa1# {[%clk 0:02:04.2]} 0-1

[Event "*** Titled Tuesday Blitz"]
[Site "Chess.com"]
[Date "2018.08.07"]
[Round "2"]
[White "SantoBlue"]
[Black "gena217"]
[Result "0-1"]
[WhiteElo "2659"]
[BlackElo "2714"]
[TimeControl "180+2"]
[EndTime "13:18:49 PDT"]
[Termination "gena217 won by resignation"]

1. d4 {[%clk 0:03:01.9]} 1... Nf6 {[%clk 0:03:00.7]} 2. Nf3 {[%clk 0:03:01.9]}
2... e6 {[%clk 0:03:01.3]} 3. c4 {[%clk 0:03:02.6]} 3... d5 {[%clk 0:03:00.5]}
4. Nc3 {[%clk 0:03:01.9]} 4... dxc4 {[%clk 0:03:01.3]} 5. e3 {[%clk 0:03:01.7]}
5... a6 {[%clk 0:03:01.8]} 6. Bxc4 {[%clk 0:03:02.1]} 6... b5 {[%clk 0:03:02.5]}
7. Be2 {[%clk 0:03:03.7]} 7... Bb7 {[%clk 0:03:04]} 8. O-O {[%clk 0:03:04.4]}
8... Nbd7 {[%clk 0:03:05.5]} 9. b3 {[%clk 0:02:49.2]} 9... c5 {[%clk 0:03:04]}
10. Bb2 {[%clk 0:02:47.3]} 10... Qb8 {[%clk 0:03:03]} 11. h3 {[%clk 0:02:32]}
11... Bd6 {[%clk 0:02:55.6]} 12. Rc1 {[%clk 0:02:14.3]} 12... O-O {[%clk
0:02:54.7]} 13. a4 {[%clk 0:02:11.3]} 13... cxd4 {[%clk 0:02:36.4]} 14. Nxd4
{[%clk 0:01:57.7]} 14... b4 {[%clk 0:02:36.4]} 15. Nb1 {[%clk 0:01:58.3]} 15...
Rd8 {[%clk 0:02:36.3]} 16. Qe1 {[%clk 0:01:55.7]} 16... Nc5 {[%clk 0:02:34.5]}
17. Nd2 {[%clk 0:01:51.4]} 17... a5 {[%clk 0:02:22.8]} 18. Nc4 {[%clk
0:01:48.5]} 18... Bh2+ {[%clk 0:02:04.5]} 19. Kh1 {[%clk 0:01:48.9]} 19... Bc7
{[%clk 0:02:06.1]} 20. f3 {[%clk 0:01:31.4]} 20... Bg3 {[%clk 0:02:03.5]} 21.
Rf2 {[%clk 0:01:20]} 21... Nce4 {[%clk 0:01:46.6]} 22. fxe4 {[%clk 0:00:43.8]}
22... Nxe4 {[%clk 0:01:48.5]} 23. Qf1 {[%clk 0:00:11.6]} 23... Bxf2 {[%clk
0:01:45.8]} 0-1

[Event "*** Titled Tuesday Blitz"]
[Site "Chess.com"]
[Date "2018.08.07"]
[Round "2"]
[White "Micki-taryan"]
[Black "Quiet_Desperation"]
[Result "1-0"]
[WhiteElo "2915"]
[BlackElo "1897"]
[TimeControl "180+2"]
[EndTime "13:18:51 PDT"]
[Termination "Micki-taryan won by resignation"]

1. b3 {[%clk 0:03:01.6]} 1... d6 {[%clk 0:02:55.9]} 2. Bb2 {[%clk 0:03:03.5]}
2... Nf6 {[%clk 0:02:57.2]} 3. Nf3 {[%clk 0:03:03.5]} 3... Nc6 {[%clk
0:02:58.4]} 4. d4 {[%clk 0:03:03.6]} 4... g6 {[%clk 0:02:58.7]} 5. d5 {[%clk
0:03:04.2]} 5... Nb8 {[%clk 0:02:59.6]} 6. c4 {[%clk 0:03:02.9]} 6... Bg7 {[%clk
0:03:00.8]} 7. Nc3 {[%clk 0:03:04.5]} 7... O-O {[%clk 0:03:01.8]} 8. Qd2 {[%clk
0:03:04.8]} 8... c5 {[%clk 0:03:00.3]} 9. e4 {[%clk 0:03:05.2]} 9... a6 {[%clk
0:02:59.4]} 10. Be2 {[%clk 0:03:04.9]} 10... Nbd7 {[%clk 0:02:45.2]} 11. O-O
{[%clk 0:03:04.3]} 11... Rb8 {[%clk 0:02:46.4]} 12. a4 {[%clk 0:03:03.5]} 12...
Ng4 {[%clk 0:02:44.6]} 13. h3 {[%clk 0:03:02.8]} 13... Nge5 {[%clk 0:02:45.1]}
14. Ne1 {[%clk 0:03:03.4]} 14... Nb6 {[%clk 0:02:26.1]} 15. a5 {[%clk
0:03:03.2]} 15... Na8 {[%clk 0:02:26.8]} 16. f4 {[%clk 0:03:04.6]} 16... Nd7
{[%clk 0:02:27.7]} 17. Nf3 {[%clk 0:03:04.4]} 17... Nc7 {[%clk 0:02:27.7]} 18.
Bd3 {[%clk 0:03:04]} 18... b5 {[%clk 0:02:26.1]} 19. axb6 {[%clk 0:03:05.9]}
19... Nxb6 {[%clk 0:02:26.9]} 20. e5 {[%clk 0:03:05.2]} 20... Nd7 {[%clk
0:02:22.3]} 21. Ne4 {[%clk 0:03:03.5]} 21... Rxb3 {[%clk 0:02:17.8]} 22. Bc3
{[%clk 0:03:00.2]} 22... Rb8 {[%clk 0:01:43]} 23. exd6 {[%clk 0:02:54.5]} 23...
Bxc3 {[%clk 0:01:44.1]} 24. Qxc3 {[%clk 0:02:50.4]} 24... exd6 {[%clk
0:01:37.9]} 25. Nxd6 {[%clk 0:02:52.3]} 25... Nb6 {[%clk 0:01:33]} 26. Nxc8
{[%clk 0:02:50.8]} 26... Rxc8 {[%clk 0:01:30.8]} 27. Ne5 {[%clk 0:02:50.7]}
27... Qf6 {[%clk 0:01:14.5]} 28. Qa5 {[%clk 0:02:50.5]} 28... Rfd8 {[%clk
0:01:10.9]} 29. Rab1 {[%clk 0:02:41.6]} 29... Nd7 {[%clk 0:01:06.9]} 30. Nc6
{[%clk 0:02:41.6]} 30... Re8 {[%clk 0:01:05.6]} 31. Rb7 {[%clk 0:02:43.5]} 31...
Qd6 {[%clk 0:00:46.7]} 32. f5 {[%clk 0:02:44.8]} 32... Ne5 {[%clk 0:00:46.7]}
33. Nxe5 {[%clk 0:02:43.9]} 33... Qxe5 {[%clk 0:00:47.9]} 34. fxg6 {[%clk
0:02:45.8]} 34... hxg6 {[%clk 0:00:48.1]} 35. Kh1 {[%clk 0:02:41.9]} 35... Qg3
{[%clk 0:00:41.1]} 36. Qc3 {[%clk 0:02:29.5]} 36... Re3 {[%clk 0:00:40]} 37. Qf6
{[%clk 0:02:30.3]} 37... Rf8 {[%clk 0:00:36]} 38. Bxg6 {[%clk 0:02:29.8]} 38...
Qxg6 {[%clk 0:00:35.6]} 39. Qxg6+ {[%clk 0:02:30]} 39... fxg6 {[%clk 0:00:36.9]}
40. Rxf8+ {[%clk 0:02:31.6]} 40... Kxf8 {[%clk 0:00:38.7]} 41. Rxc7 {[%clk
0:02:33.4]} 1-0

[Event "*** Titled Tuesday Blitz"]
[Site "Chess.com"]
[Date "2018.08.07"]
[Round "2"]
[White "Kislov_Oleg"]
[Black "muran29"]
[Result "0-1"]
[WhiteElo "2371"]
[BlackElo "2358"]
[TimeControl "180+2"]
[EndTime "13:19:03 PDT"]
[Termination "muran29 won by resignation"]

1. e4 {[%clk 0:03:00.8]} 1... c6 {[%clk 0:01:55.8]} 2. d4 {[%clk 0:02:59.3]}
2... d5 {[%clk 0:01:57.5]} 3. Nc3 {[%clk 0:03:00.1]} 3... dxe4 {[%clk
0:01:58.3]} 4. Nxe4 {[%clk 0:03:01.6]} 4... Nf6 {[%clk 0:01:59.1]} 5. Nxf6+
{[%clk 0:03:02]} 5... gxf6 {[%clk 0:02:00.8]} 6. c3 {[%clk 0:03:01]} 6... Bf5
{[%clk 0:02:02.7]} 7. Bd3 {[%clk 0:03:01.3]} 7... Bg6 {[%clk 0:02:03.5]} 8. Ne2
{[%clk 0:03:01.5]} 8... Nd7 {[%clk 0:02:04.6]} 9. Ng3 {[%clk 0:02:55.5]} 9... e6
{[%clk 0:02:05.9]} 10. O-O {[%clk 0:02:55.5]} 10... f5 {[%clk 0:02:06.2]} 11.
Re1 {[%clk 0:02:52.2]} 11... h5 {[%clk 0:02:07.2]} 12. Nxf5 {[%clk 0:02:49.2]}
12... h4 {[%clk 0:02:05.9]} 13. h3 {[%clk 0:02:43]} 13... Bxf5 {[%clk
0:02:04.6]} 14. Bxf5 {[%clk 0:02:43.1]} 14... Qf6 {[%clk 0:02:05.9]} 15. Qf3
{[%clk 0:02:39.3]} 15... O-O-O {[%clk 0:02:06.7]} 16. Be4 {[%clk 0:02:37.4]}
16... Qxf3 {[%clk 0:02:04.5]} 17. Bxf3 {[%clk 0:02:38]} 17... Bd6 {[%clk
0:02:06]} 18. a4 {[%clk 0:02:21.8]} 18... Kc7 {[%clk 0:02:06.9]} 19. b3 {[%clk
0:02:21]} 19... Rhg8 {[%clk 0:02:07.5]} 20. Ba3 {[%clk 0:02:21.6]} 20... c5
{[%clk 0:02:08.1]} 21. Rad1 {[%clk 0:02:16.4]} 21... b6 {[%clk 0:02:00.3]} 22.
Rd3 {[%clk 0:02:11.6]} 22... Bf8 {[%clk 0:01:53.4]} 23. Red1 {[%clk 0:02:10.4]}
23... c4 {[%clk 0:01:54.5]} 24. R3d2 {[%clk 0:01:57.8]} 24... Bxa3 {[%clk
0:01:53.9]} 25. b4 {[%clk 0:01:58.8]} 25... a5 {[%clk 0:01:54.8]} 26. Rb1 {[%clk
0:01:57.1]} 26... axb4 {[%clk 0:01:54.6]} 27. cxb4 {[%clk 0:01:58.1]} 27... Ra8
{[%clk 0:01:50.6]} 28. Bxa8 {[%clk 0:01:57.9]} 28... Rxa8 {[%clk 0:01:52.5]} 29.
Ra2 {[%clk 0:01:58.5]} 29... Rxa4 {[%clk 0:01:46.1]} 30. Rba1 {[%clk 0:01:59.3]}
30... Nf6 {[%clk 0:01:40.5]} 31. Rxa3 {[%clk 0:01:59.5]} 31... Rxb4 {[%clk
0:01:42.4]} 32. Ra7+ {[%clk 0:01:59.7]} 32... Kc6 {[%clk 0:01:43.2]} 33. Rxf7
{[%clk 0:02:00.5]} 33... Nd5 {[%clk 0:01:44.5]} 34. Re1 {[%clk 0:01:57.5]} 34...
Kd6 {[%clk 0:01:44.6]} 35. Rh7 {[%clk 0:01:55]} 35... c3 {[%clk 0:01:44.9]} 36.
Rxh4 {[%clk 0:01:55.9]} 36... c2 {[%clk 0:01:45.4]} 37. Rhe4 {[%clk 0:01:56.6]}
37... Rb1 {[%clk 0:01:37.8]} 38. Rxe6+ {[%clk 0:01:53.5]} 38... Kd7 {[%clk
0:01:39]} 39. Re5 {[%clk 0:01:51.3]} 39... c1=Q {[%clk 0:01:37.5]} 40. Rxc1
{[%clk 0:01:47.5]} 40... Rxc1+ {[%clk 0:01:38.7]} 41. Kh2 {[%clk 0:01:49.1]}
41... Kd6 {[%clk 0:01:40.6]} 42. h4 {[%clk 0:01:49.3]} 42... b5 {[%clk 0:01:42]}
43. h5 {[%clk 0:01:50.5]} 43... b4 {[%clk 0:01:43.5]} 44. h6 {[%clk 0:01:51.5]}
44... b3 {[%clk 0:01:45]} 45. h7 {[%clk 0:01:50.9]} 45... Rc8 {[%clk 0:01:45.8]}
46. Re3 {[%clk 0:01:49.3]} 46... Nxe3 {[%clk 0:01:43.2]} 0-1

[Event "*** Titled Tuesday Blitz"]
[Site "Chess.com"]
[Date "2018.08.07"]
[Round "2"]
[White "Manukyan_Artak"]
[Black "albi1999"]
[Result "1/2-1/2"]
[WhiteElo "2325"]
[BlackElo "2394"]
[TimeControl "180+2"]
[EndTime "13:19:20 PDT"]
[Termination "Game drawn by agreement"]

1. e4 {[%clk 0:03:01.9]} 1... e5 {[%clk 0:03:00.5]} 2. Nf3 {[%clk 0:03:02.7]}
2... Nc6 {[%clk 0:03:00]} 3. d4 {[%clk 0:03:03.3]} 3... exd4 {[%clk 0:03:00.8]}
4. Nxd4 {[%clk 0:03:03.5]} 4... Bc5 {[%clk 0:03:02.2]} 5. Nxc6 {[%clk
0:03:04.6]} 5... Qf6 {[%clk 0:03:01.7]} 6. Qf3 {[%clk 0:03:05.7]} 6... dxc6
{[%clk 0:02:50.7]} 7. Bc4 {[%clk 0:03:05.2]} 7... Qe7 {[%clk 0:02:46.7]} 8. O-O
{[%clk 0:02:58.5]} 8... Be6 {[%clk 0:02:40.1]} 9. Bxe6 {[%clk 0:02:53.1]} 9...
Qxe6 {[%clk 0:02:27.8]} 10. Qg3 {[%clk 0:02:47.6]} 10... Nf6 {[%clk 0:02:22.5]}
11. Qxc7 {[%clk 0:02:38.8]} 11... O-O {[%clk 0:02:09.4]} 12. Nc3 {[%clk
0:02:33.3]} 12... Nxe4 {[%clk 0:02:05.2]} 13. Nxe4 {[%clk 0:02:28.2]} 13... Qxe4
{[%clk 0:02:07.1]} 14. c3 {[%clk 0:02:11.9]} 14... Qe7 {[%clk 0:01:45.7]} 15.
Qxe7 {[%clk 0:02:08]} 15... Bxe7 {[%clk 0:01:47.6]} 16. Re1 {[%clk 0:02:09.6]}
16... Bc5 {[%clk 0:01:44.6]} 17. Be3 {[%clk 0:02:09.4]} 17... Bxe3 {[%clk
0:01:45.4]} 18. Rxe3 {[%clk 0:02:10.6]} 18... Rfe8 {[%clk 0:01:46.8]} 19. Rae1
{[%clk 0:02:11.6]} 19... Kf8 {[%clk 0:01:47.9]} 20. f4 {[%clk 0:02:09.3]} 20...
Rxe3 {[%clk 0:01:46.1]} 21. Rxe3 {[%clk 0:02:10.4]} 21... Rd8 {[%clk 0:01:47.8]}
22. Kf2 {[%clk 0:02:10.4]} 22... Rd2+ {[%clk 0:01:47.4]} 23. Re2 {[%clk
0:02:11.1]} 23... Rd3 {[%clk 0:01:46.1]} 24. Re3 {[%clk 0:02:11.3]} 24... Rd1
{[%clk 0:01:46.9]} 25. Re1 {[%clk 0:02:12.3]} 25... Rxe1 {[%clk 0:01:46.6]} 26.
Kxe1 {[%clk 0:02:13.1]} 26... Ke7 {[%clk 0:01:48.5]} 27. Kf2 {[%clk 0:02:14]}
27... Ke6 {[%clk 0:01:50.4]} 28. Kf3 {[%clk 0:02:12.6]} 28... Kd5 {[%clk
0:01:50.6]} 29. b3 {[%clk 0:02:13.8]} 29... b5 {[%clk 0:01:45.9]} 30. Ke3 {[%clk
0:02:09.9]} 30... a5 {[%clk 0:01:46.5]} 31. Kd3 {[%clk 0:02:08.9]} 31... f5
{[%clk 0:01:45.3]} 32. c4+ {[%clk 0:02:02]} 32... Kc5 {[%clk 0:01:28]} 33. Kc3
{[%clk 0:01:55.2]} 33... h6 {[%clk 0:01:26.3]} 34. h4 {[%clk 0:01:49.5]} 34...
h5 {[%clk 0:01:24.3]} 35. g3 {[%clk 0:01:49.7]} 35... g6 {[%clk 0:00:58.6]} 36.
a3 {[%clk 0:01:50.4]} 36... b4+ {[%clk 0:00:45]} 37. axb4+ {[%clk 0:01:50.3]}
37... axb4+ {[%clk 0:00:46.9]} 38. Kd3 {[%clk 0:01:48.3]} 38... Kd6 {[%clk
0:00:48.1]} 39. Kd4 {[%clk 0:01:49.3]} 39... c5+ {[%clk 0:00:49.7]} 40. Ke3
{[%clk 0:01:50.5]} 1/2-1/2

[Event "*** Titled Tuesday Blitz"]
[Site "Chess.com"]
[Date "2018.08.07"]
[Round "2"]
[White "AndrewDGreen"]
[Black "cool4chess"]
[Result "1-0"]
[WhiteElo "2185"]
[BlackElo "2087"]
[TimeControl "180+2"]
[EndTime "13:19:21 PDT"]
[Termination "AndrewDGreen won by resignation"]

1. d4 {[%clk 0:03:01.9]} 1... d5 {[%clk 0:02:19.2]} 2. Bf4 {[%clk 0:03:01.6]}
2... c5 {[%clk 0:02:18.7]} 3. e3 {[%clk 0:03:02.3]} 3... Nc6 {[%clk 0:02:15.5]}
4. c3 {[%clk 0:03:03.1]} 4... Nf6 {[%clk 0:02:14.1]} 5. Nd2 {[%clk 0:03:00.6]}
5... Bf5 {[%clk 0:02:11.9]} 6. Qb3 {[%clk 0:02:30.1]} 6... Na5 {[%clk
0:01:53.5]} 7. Bb5+ {[%clk 0:02:03.5]} 7... Bd7 {[%clk 0:01:53.3]} 8. Qa4 {[%clk
0:01:56.1]} 8... Nc6 {[%clk 0:01:52.4]} 9. Ngf3 {[%clk 0:01:38.7]} 9... e6
{[%clk 0:01:28.9]} 10. O-O {[%clk 0:01:37.6]} 10... a6 {[%clk 0:01:24.3]} 11.
Bxc6 {[%clk 0:01:37.1]} 11... Bxc6 {[%clk 0:01:26.2]} 12. Qc2 {[%clk 0:01:36.9]}
12... Bd6 {[%clk 0:01:21.5]} 13. Bxd6 {[%clk 0:01:35.3]} 13... Qxd6 {[%clk
0:01:21.6]} 14. Ne5 {[%clk 0:01:36.3]} 14... O-O {[%clk 0:01:22.1]} 15. f4
{[%clk 0:01:35.5]} 15... Nd7 {[%clk 0:01:13.1]} 16. Rf3 {[%clk 0:01:23.7]} 16...
f5 {[%clk 0:00:34.3]} 17. Nxd7 {[%clk 0:01:19.1]} 17... Bxd7 {[%clk 0:00:33.1]}
18. Rh3 {[%clk 0:01:19.8]} 18... cxd4 {[%clk 0:00:32.6]} 19. cxd4 {[%clk
0:01:21.5]} 19... Rac8 {[%clk 0:00:33.4]} 20. Qd1 {[%clk 0:01:18.1]} 20... Qb4
{[%clk 0:00:33.9]} 21. Nb3 {[%clk 0:01:11.3]} 21... Be8 {[%clk 0:00:31.6]} 22.
a3 {[%clk 0:01:10.7]} 22... Qb6 {[%clk 0:00:22.1]} 23. Nc5 {[%clk 0:01:06]}
23... Qc6 {[%clk 0:00:23.1]} 24. Rc1 {[%clk 0:01:00.8]} 24... b6 {[%clk
0:00:24.3]} 25. Nd3 {[%clk 0:01:02.1]} 25... Qb5 {[%clk 0:00:23.9]} 26. Rxc8
{[%clk 0:01:01.4]} 1-0

[Event "*** Titled Tuesday Blitz"]
[Site "Chess.com"]
[Date "2018.08.07"]
[Round "2"]
[White "Raja3401"]
[Black "Shant_Sargsyan"]
[Result "1-0"]
[WhiteElo "2613"]
[BlackElo "2823"]
[TimeControl "180+2"]
[EndTime "13:19:23 PDT"]
[Termination "Raja3401 won by resignation"]

1. e4 {[%clk 0:03:01.9]} 1... e5 {[%clk 0:03:00.4]} 2. Nf3 {[%clk 0:03:03]} 2...
Nc6 {[%clk 0:03:01.6]} 3. Bb5 {[%clk 0:03:04.6]} 3... a6 {[%clk 0:03:02.5]} 4.
Ba4 {[%clk 0:03:05.7]} 4... Nf6 {[%clk 0:03:04.1]} 5. O-O {[%clk 0:03:07.1]}
5... Nxe4 {[%clk 0:03:05.4]} 6. d4 {[%clk 0:03:07.4]} 6... b5 {[%clk 0:03:06.8]}
7. Bb3 {[%clk 0:03:08.5]} 7... d5 {[%clk 0:03:08.6]} 8. dxe5 {[%clk 0:03:09.7]}
8... Be6 {[%clk 0:03:09.5]} 9. Nbd2 {[%clk 0:03:10.4]} 9... Be7 {[%clk
0:03:10.3]} 10. c3 {[%clk 0:02:55.5]} 10... O-O {[%clk 0:03:11.2]} 11. Bc2
{[%clk 0:02:55.2]} 11... f5 {[%clk 0:03:12.3]} 12. exf6 {[%clk 0:02:55]} 12...
Nxf6 {[%clk 0:03:13.3]} 13. Nb3 {[%clk 0:02:55.6]} 13... Bg4 {[%clk 0:03:10.1]}
14. Qd3 {[%clk 0:02:27.7]} 14... Ne4 {[%clk 0:03:09.4]} 15. Nbd4 {[%clk
0:02:27.6]} 15... Nxd4 {[%clk 0:03:10.3]} 16. Nxd4 {[%clk 0:02:28.4]} 16... c5
{[%clk 0:03:10.3]} 17. Nc6 {[%clk 0:01:55]} 17... Qd7 {[%clk 0:01:39.7]} 18.
Nxe7+ {[%clk 0:01:54.1]} 18... Kh8 {[%clk 0:01:39.1]} 19. Qxd5 {[%clk
0:01:49.2]} 19... Nd6 {[%clk 0:01:31.4]} 20. Bg5 {[%clk 0:01:41.2]} 20... Rae8
{[%clk 0:01:24.9]} 21. f3 {[%clk 0:01:38.8]} 21... Be6 {[%clk 0:01:18.3]} 22.
Qd3 {[%clk 0:01:36.9]} 22... g6 {[%clk 0:01:16.5]} 23. Rfd1 {[%clk 0:01:28.1]}
23... Rd8 {[%clk 0:01:13.9]} 24. Qe3 {[%clk 0:01:24.9]} 24... h6 {[%clk
0:00:33.1]} 25. Nxg6+ {[%clk 0:01:11.8]} 25... Kg8 {[%clk 0:00:34.2]} 26. Nxf8
{[%clk 0:01:11.7]} 26... Rxf8 {[%clk 0:00:34.4]} 27. Bxh6 {[%clk 0:01:12.5]} 1-0

[Event "*** Titled Tuesday Blitz"]
[Site "Chess.com"]
[Date "2018.08.07"]
[Round "2"]
[White "ChrisTool2"]
[Black "FMchesstrainer"]
[Result "1-0"]
[WhiteElo "2250"]
[BlackElo "2335"]
[TimeControl "180+2"]
[EndTime "13:19:23 PDT"]
[Termination "ChrisTool2 won by resignation"]

1. d4 {[%clk 0:03:01.9]} 1... g6 {[%clk 0:03:01.9]} 2. c4 {[%clk 0:03:01.5]}
2... Bg7 {[%clk 0:03:03.4]} 3. Nc3 {[%clk 0:03:01.4]} 3... d6 {[%clk 0:03:04.9]}
4. e4 {[%clk 0:03:01.2]} 4... e5 {[%clk 0:03:05.5]} 5. Nge2 {[%clk 0:02:56.5]}
5... Nc6 {[%clk 0:03:05.2]} 6. Be3 {[%clk 0:02:48.5]} 6... Nf6 {[%clk
0:03:05.4]} 7. f3 {[%clk 0:02:47.4]} 7... O-O {[%clk 0:03:06.4]} 8. d5 {[%clk
0:02:42]} 8... Ne7 {[%clk 0:03:07.3]} 9. Qd2 {[%clk 0:02:42.7]} 9... Nd7 {[%clk
0:03:07.1]} 10. g4 {[%clk 0:02:09.7]} 10... f5 {[%clk 0:03:07.4]} 11. gxf5
{[%clk 0:02:07.8]} 11... gxf5 {[%clk 0:03:08.7]} 12. O-O-O {[%clk 0:02:04.5]}
12... f4 {[%clk 0:03:09]} 13. Bf2 {[%clk 0:02:04.7]} 13... Ng6 {[%clk
0:03:10.5]} 14. h4 {[%clk 0:02:01.5]} 14... Kh8 {[%clk 0:03:07.7]} 15. h5 {[%clk
0:01:57.7]} 15... Ne7 {[%clk 0:03:08.8]} 16. Kb1 {[%clk 0:01:47.8]} 16... a6
{[%clk 0:03:04.2]} 17. Bh3 {[%clk 0:01:45]} 17... b5 {[%clk 0:02:58.2]} 18. cxb5
{[%clk 0:01:33.1]} 18... axb5 {[%clk 0:02:54.7]} 19. Nxb5 {[%clk 0:01:33.6]}
19... Ba6 {[%clk 0:02:54.8]} 20. Nbc3 {[%clk 0:01:10.9]} 20... Bf6 {[%clk
0:02:53.1]} 21. Nc1 {[%clk 0:01:09.5]} 21... Nb6 {[%clk 0:02:50.6]} 22. Bxb6
{[%clk 0:00:55.1]} 22... cxb6 {[%clk 0:02:51.4]} 23. Bf1 {[%clk 0:00:42.5]}
23... Bc8 {[%clk 0:02:49.3]} 24. Bh3 {[%clk 0:00:42.9]} 24... Ba6 {[%clk
0:02:48]} 25. Bf1 {[%clk 0:00:43.8]} 25... Bxf1 {[%clk 0:02:35.3]} 26. Rdxf1
{[%clk 0:00:45.7]} 26... Qe8 {[%clk 0:02:33.8]} 27. Qd3 {[%clk 0:00:40.5]} 27...
Ra5 {[%clk 0:02:33.1]} 28. Nb3 {[%clk 0:00:38.3]} 28... Ra8 {[%clk 0:02:30.1]}
29. Qb5 {[%clk 0:00:36.7]} 29... Qd8 {[%clk 0:02:30.8]} 30. Rc1 {[%clk
0:00:32.5]} 30... Nc8 {[%clk 0:02:25.7]} 31. Qc6 {[%clk 0:00:24.9]} 31... Na7
{[%clk 0:02:24.6]} 32. Qb7 {[%clk 0:00:21.4]} 32... Be7 {[%clk 0:02:15.4]} 33.
Na4 {[%clk 0:00:22]} 33... b5 {[%clk 0:02:12.1]} 34. Nb6 {[%clk 0:00:19.7]}
34... Rb8 {[%clk 0:02:13.5]} 35. Qxa7 {[%clk 0:00:20.7]} 35... Rxb6 {[%clk
0:02:14.7]} 36. Rc7 {[%clk 0:00:21.6]} 36... Rb8 {[%clk 0:01:59.7]} 37. Rxe7
{[%clk 0:00:22.2]} 1-0

[Event "*** Titled Tuesday Blitz"]
[Site "Chess.com"]
[Date "2018.08.07"]
[Round "2"]
[White "FearNoEvil12"]
[Black "Makalexa"]
[Result "0-1"]
[WhiteElo "1943"]
[BlackElo "2062"]
[TimeControl "180+2"]
[EndTime "13:19:24 PDT"]
[Termination "Makalexa won by resignation"]

1. e4 {[%clk 0:02:52.5]} 1... e5 {[%clk 0:02:58]} 2. d4 {[%clk 0:02:52.4]} 2...
exd4 {[%clk 0:02:55.9]} 3. Bc4 {[%clk 0:02:53.7]} 3... Nc6 {[%clk 0:02:50.2]} 4.
Nf3 {[%clk 0:02:54.9]} 4... Bc5 {[%clk 0:02:40.8]} 5. O-O {[%clk 0:02:53.8]}
5... d6 {[%clk 0:02:38.2]} 6. c3 {[%clk 0:02:46.9]} 6... Bg4 {[%clk 0:02:31.8]}
7. h3 {[%clk 0:02:45.5]} 7... Bxf3 {[%clk 0:02:28.6]} 8. Qxf3 {[%clk 0:02:45.4]}
8... Ne5 {[%clk 0:02:30]} 9. Qe2 {[%clk 0:02:40.9]} 9... Nxc4 {[%clk 0:02:28.1]}
10. Qxc4 {[%clk 0:02:40.7]} 10... dxc3 {[%clk 0:02:20.9]} 11. Nxc3 {[%clk
0:02:42.6]} 11... Qd7 {[%clk 0:02:17.8]} 12. b4 {[%clk 0:02:41.9]} 12... Bb6
{[%clk 0:02:17.7]} 13. Bb2 {[%clk 0:02:41.4]} 13... Ne7 {[%clk 0:02:14.6]} 14.
Rad1 {[%clk 0:02:32.5]} 14... Nc6 {[%clk 0:02:13.8]} 15. Nd5 {[%clk 0:02:27.9]}
15... O-O {[%clk 0:02:07.9]} 16. Rd3 {[%clk 0:02:18.5]} 16... Qe6 {[%clk
0:01:59]} 17. Rg3 {[%clk 0:01:59.7]} 17... Ne5 {[%clk 0:01:50.7]} 18. Qc3 {[%clk
0:01:57.7]} 18... f6 {[%clk 0:01:47.1]} 19. Kh1 {[%clk 0:01:33.6]} 19... c6
{[%clk 0:01:46.7]} 20. Nxb6 {[%clk 0:01:26.4]} 20... axb6 {[%clk 0:01:48.6]} 21.
a3 {[%clk 0:01:26.8]} 21... Qc4 {[%clk 0:01:47]} 22. Qd2 {[%clk 0:01:22.3]}
22... Qxf1+ {[%clk 0:01:45.8]} 23. Kh2 {[%clk 0:01:22]} 23... Rae8 {[%clk
0:01:39.1]} 24. Qxd6 {[%clk 0:00:36.8]} 24... Qxf2 {[%clk 0:01:35.2]} 25. Bd4
{[%clk 0:00:26]} 25... Qf4 {[%clk 0:01:25.4]} 26. Be3 {[%clk 0:00:17.4]} 26...
Nf3+ {[%clk 0:01:20.9]} 27. Kh1 {[%clk 0:00:15.5]} 27... Qxd6 {[%clk 0:01:17.4]}
0-1